[Event "SRB-chT Women 1st League 2019"]
[Site "Subotica"]
[Date "2019.08.26"]
[Round "5"]
[White "Stojanovic, Andjelija"]
[Black "Urosevic, Marija"]
[Result "1-0"]
[ECO "B22"]
[WhiteElo "2350"]
[BlackElo "2064"]
[Annotator "NA"]
[PlyCount "62"]
[EventDate "2019.08.23"]
[EventType "team-tourn"]
[EventCountry "SRB"]
[SourceTitle "playchess.com"]
[Source "ChessBase"]
[SourceQuality "1"]
[TimeControl "40/5400+30:1800+30"]

1. e4 {[%emt 0:00:30]} c5 {[%emt 0:00:30]} 2. c3 {[%emt 0:01:30]} Nf6 {[%emt 0:01:30]} 3. e5 {[%emt 0:00:30]} Nd5 {[%emt 0:00:30]} 4. Nf3 {[%emt 0:00:30]} e6 {[%emt 0:00:00]} 5. g3 {[%emt 0:00:30]} Nc6 {[%emt 0:12:00]} 6. Bg2 {[%emt 0:00:30]} d6 {[%emt 0:08:30]} 7. exd6 {[%emt 0:00:30]} Bxd6 {[%emt 0:00:30]} 8. O-O {[%emt 0:00:30]} O-O {[%emt 0:00:30]} 9. d4 {[%emt 0:00:00]} cxd4 {[%emt 0:04:30]} 10. Nxd4 {[%emt 0:00:00]} Nde7 {[%emt 0:17:30]} 11. Nxc6 {[%emt 0:15:30]} Nxc6 {[%emt 0:03:30]} 12. Nd2 {[%emt 0:01:30]} e5 {[%emt 0:04:30]} 13. Ne4 {[%emt 0:30:30]} Be7 {[%emt 0:02:30]} 14. Qh5 {[%emt 0:06:30]} f6 {[%emt 0:08:30]} 15. Rd1 {[%emt 0:03:30]} Qc7 {[%emt 0:00:00]} 16. Be3 {[%emt 0:04:30]} Nd8 {[%emt 0:10:00]} 17. Rd2 {[%emt 0:10:30]} Nf7 {[%emt 0:00:30]} 18. h4 {[%emt 0:09:49]} Be6 {[%emt 0:05:39]} 19. Qf3 {[%emt 0:01:12]} h6 {[%emt 0:04:32]} 20. g4 {[%emt 0:03:37]} Qc8 {[%emt 0:00:19]} 21. Ng3 {[%emt 0:00:27]} Nd6 {[%emt 0:02:47]} 22. Nf5 {[%emt 0:00:28]} Bxf5 {[%emt 0:01:27]} 23. gxf5 {[%emt 0:01:20]} e4 {[%emt 0:04:10]} 24. Qf4 {[%emt 0:01:15]} Nc4 {[%emt 0:00:30]} 25. Qxe4 {[%emt 0:02:16]} Nxe3 {[%emt 0:02:21]} 26. Qxe7 {[%emt 0:02:53]} Nxf5 {[%emt 0:00:16]} 27. Qxb7 {[%emt 0:00:35]} Qxb7 {[%emt 0:01:44]} 28. Bxb7 {[%emt 0:00:03]} Rab8 {[%emt 0:01:36]} 29. Bd5+ {[%emt 0:00:49]} Kh8 {[%emt 0:00:35]} 30. h5 {[%emt 0:00:41]} Ne7 {[%emt 0:00:28]} 31. Bf3 {[%emt 0:02:11]} Rb5 {[%emt 0:00:26]} 1-0

[Event "SRB-chT Women 1st League 2019"]
[Site "Subotica"]
[Date "2019.08.26"]
[Round "5"]
[White "Doluhanova, Evgeniya"]
[Black "Bojkovic, Natasa"]
[Result "1/2-1/2"]
[ECO "A47"]
[WhiteElo "2305"]
[BlackElo "2374"]
[Annotator "NA RC"]
[PlyCount "71"]
[EventDate "2019.08.23"]
[EventType "team-tourn"]
[EventCountry "SRB"]
[SourceTitle "playchess.com"]
[Source "ChessBase"]
[SourceQuality "1"]
[TimeControl "40/5400+30:1800+30"]

1. Nf3 {[%emt 0:02:30]} Nf6 {[%emt 0:00:30]} 2. d4 {[%emt 0:01:30]} e6 {[%emt 0:01:30]} 3. Bf4 {[%emt 0:01:30]} c5 {[%emt 0:08:30]} 4. e3 {[%emt 0:03:30]} b6 {[%emt 0:00:30]} 5. Bd3 {[%emt 0:00:30]} Bb7 {[%emt 0:00:30]} 6. O-O {[%emt 0:00:30]} Be7 {[%emt 0:00:30]} 7. c3 {[%emt 0:02:30]} O-O {[%emt 0:00:30]} 8. a4 {[%emt 0:03:30]} Nh5 {[%emt 0:06:30]} 9. a5 {[%emt 0:11:30]} Nxf4 {[%emt 0:02:30]} 10. exf4 {[%emt 0:00:30]} cxd4 {[%emt 0:04:30]} 11. Nxd4 {[%emt 0:10:30]} bxa5 {[%emt 0:02:30]} 12. Nd2 {[%emt 0:03:30]} Nc6 {[%emt 0:01:30]} 13. Nxc6 {[%emt 0:01:30]} Bxc6 {[%emt 0:00:00]} 14. Nc4 {[%emt 0:04:30]} Qc7 {[%emt 0:25:00]} 15. Nxa5 {[%emt 0:09:30]} Qxf4 {[%emt 0:01:30]} 16. Nxc6 {[%emt 0:00:30]} dxc6 {[%emt 0:00:30]} 17. Ra4 {[%emt 0:00:30]} Qc7 {[%emt 0:00:30]} 18. Qf3 {[%emt 0:00:30]} a5 {[%emt 0:00:30]} 19. Rfa1 {[%emt 0:02:30]} Rab8 {[%emt 0:10:30]} 20. Qe2 {[%emt 0:00:30]} Qb6 {[%emt 0:08:30]} 21. R1a2 {[%emt 0:01:30]} Rfd8 {[%emt 0:04:59]} 22. Rxa5 {[%emt 0:03:30]} Qb3 {[%emt 0:02:48]} 23. Bc2 {[%emt 0:05:30]} Qb6 {[%emt 0:00:30]} 24. b4 {[%emt 0:00:30]} g6 {[%emt 0:01:56]} 25. g3 {[%emt 0:05:30]} Rd6 {[%emt 0:00:30]} 26. Qf3 {[%emt 0:04:30]} Kg7 {[%emt 0:04:09]} 27. Ra6 {[%emt 0:05:04]} Qc7 {[%emt 0:01:16]} 28. c4 {[%emt 0:06:07]} Qd8 {[%emt 0:04:45]} 29. Rxc6 {[%emt 0:07:02]} Rxc6 {[%emt 0:00:08]} 30. Qxc6 {[%emt 0:00:06]} Rxb4 {[%emt 0:01:10]} 31. Ra7 {[%emt 0:00:34]} Rb6 {[%emt 0:02:37]} 32. Qe4 {[%emt 0:02:34]} Kg8 {[%emt 0:02:23]} 33. Kg2 {[%emt 0:00:33]} Rb8 {[%emt 0:00:33]} 34. Ba4 {[%emt 0:00:38]} Bc5 {[%emt 0:00:24]} 35. Rd7 {[%emt 0:00:35]} Qf6 {[%emt 0:00:06]} 36. Rd2 {[%emt 0:00:24]} 1/2-1/2

[Event "SRB-chT Women 1st League 2019"]
[Site "Subotica"]
[Date "2019.08.26"]
[Round "5"]
[White "Drljevic, Ljilja"]
[Black "Chelushkina, Irina"]
[Result "1-0"]
[ECO "B10"]
[WhiteElo "2162"]
[BlackElo "2275"]
[Annotator "NA"]
[PlyCount "59"]
[EventDate "2019.08.23"]
[EventType "team-tourn"]
[EventCountry "SRB"]
[SourceTitle "playchess.com"]
[Source "ChessBase"]
[SourceQuality "1"]
[TimeControl "40/5400+30:1800+30"]

1. e4 {[%emt 0:00:30]} c6 {[%emt 0:00:30]} 2. d3 {[%emt 0:00:00]} e5 {[%emt 0:00:30]} 3. Nf3 {[%emt 0:04:00]} Nf6 {[%emt 0:03:30]} 4. g3 {[%emt 0:00:30]} d6 {[%emt 0:02:30]} 5. Bg2 {[%emt 0:01:30]} Be7 {[%emt 0:00:30]} 6. O-O {[%emt 0:01:30]} O-O {[%emt 0:00:30]} 7. a4 {[%emt 0:06:30]} Na6 {[%emt 0:01:30]} 8. Re1 {[%emt 0:02:30]} Nc7 {[%emt 0:03:30]} 9. Nbd2 {[%emt 0:06:30]} Be6 {[%emt 0:05:30]} 10. Nf1 {[%emt 0:16:30]} Nd7 {[%emt 0:03:30]} 11. h4 {[%emt 0:06:30]} h6 {[%emt 0:16:30]} 12. Ne3 {[%emt 0:01:30]} d5 {[%emt 0:00:30]} 13. Nf5 {[%emt 0:05:30]} Bf6 {[%emt 0:04:30]} 14. Nh2 {[%emt 0:02:30]} Bxf5 {[%emt 0:23:30]} 15. exf5 {[%emt 0:00:30]} Be7 {[%emt 0:00:30]} 16. Ng4 {[%emt 0:15:30]} Bd6 {[%emt 0:01:30]} 17. Nxh6+ {[%emt 0:22:58]} gxh6 {[%emt 0:01:30]} 18. Bxh6 {[%emt 0:00:03]} Nf6 {[%emt 0:08:31]} 19. g4 {[%emt 0:02:18]} Re8 {[%emt 0:10:36]} 20. g5 {[%emt 0:00:06]} Nh7 {[%emt 0:00:04]} 21. Qh5 {[%emt 0:01:14]} Bf8 {[%emt 0:04:49]} 22. Bxf8 {[%emt 0:01:33]} Nxf8 {[%emt 0:00:10]} 23. f6 {[%emt 0:00:32]} Qd6 {[%emt 0:02:57]} 24. Bh3 {[%emt 0:00:22]} e4 {[%emt 0:01:13]} 25. dxe4 {[%emt 0:00:48]} Rxe4 {[%emt 0:00:02]} 26. Qh6 {[%emt 0:00:33]} Nce6 {[%emt 0:00:20]} 27. Bf5 {[%emt 0:00:20]} Re5 {[%emt 0:00:41]} 28. Bd3 {[%emt 0:00:24]} d4 {[%emt 0:01:07]} 29. g6 {[%emt 0:00:43]} fxg6 {[%emt 0:00:54]} 30. Bxg6 {[%emt 0:00:32]} 1-0

[Event "SRB-chT Women 1st League 2019"]
[Site "Subotica"]
[Date "2019.08.26"]
[Round "5"]
[White "Zarkovic, Mila"]
[Black "Velikic, Adela"]
[Result "0-1"]
[ECO "B70"]
[WhiteElo "2141"]
[BlackElo "2252"]
[Annotator "NA"]
[PlyCount "59"]
[EventDate "2019.08.23"]
[EventType "team-tourn"]
[EventCountry "SRB"]
[SourceTitle "playchess.com"]
[Source "ChessBase"]
[SourceQuality "1"]
[TimeControl "40/5400+30:1800+30"]

1. e4 {[%emt 0:00:30]} c5 {[%emt 0:00:30]} 2. Nf3 {[%emt 0:00:00]} Nc6 {[%emt 0:00:00]} 3. d4 {[%emt 0:08:00]} cxd4 {[%emt 0:00:00]} 4. Nxd4 {[%emt 0:00:30]} Nf6 {[%emt 0:00:30]} 5. Nc3 {[%emt 0:00:30]} d6 {[%emt 0:00:00]} 6. Nb3 {[%emt 0:04:30]} g6 {[%emt 0:15:00]} 7. Bg5 {[%emt 0:00:30]} Bg7 {[%emt 0:01:30]} 8. Qd2 {[%emt 0:00:30]} O-O {[%emt 0:02:30]} 9. O-O-O {[%emt 0:00:30]} a5 {[%emt 0:12:30]} 10. a4 {[%emt 0:00:30]} Be6 {[%emt 0:08:30]} 11. h4 {[%emt 0:04:30]} Rc8 {[%emt 0:04:30]} 12. f3 {[%emt 0:20:30]} Nd7 {[%emt 0:16:30]} 13. Kb1 {[%emt 0:10:30]} Bxb3 {[%emt 0:18:47]} 14. cxb3 {[%emt 0:00:30]} Nc5 {[%emt 0:01:01]} 15. Ka2 {[%emt 0:19:30]} Nb4+ {[%emt 0:02:20]} 16. Ka3 {[%emt 0:00:00]} Ne6 {[%emt 0:01:27]} 17. Be3 {[%emt 0:04:00]} Bd4 {[%emt 0:04:00]} 18. Bd3 {[%emt 0:13:20]} Qb6 {[%emt 0:01:10]} 19. Bxd4 {[%emt 0:00:26]} Nxd4 {[%emt 0:00:27]} 20. Nb5 {[%emt 0:05:18]} Nxb5+ {[%emt 0:04:16]} 21. Bxb5 {[%emt 0:00:05]} Rc2 {[%emt 0:00:55]} 22. Qd4 {[%emt 0:00:25]} Qxd4 {[%emt 0:01:48]} 23. Rxd4 {[%emt 0:00:02]} Rfc8 {[%emt 0:00:25]} 24. Rg1 {[%emt 0:02:43]} Rf2 {[%emt 0:01:09]} 25. Rc4 {[%emt 0:00:42]} Rxc4 {[%emt 0:00:16]} 26. bxc4 {[%emt 0:01:07]} Kf8 {[%emt 0:00:54]} 27. c5 {[%emt 0:01:28]} dxc5 {[%emt 0:00:14]} 28. Kb3 {[%emt 0:01:32]} Nc2 {[%emt 0:00:52]} 29. Kc4 {[%emt 0:00:54]} b6 {[%emt 0:00:10]} 30. Kc3 {[%emt 0:00:26]} 0-1

[Event "SRB-chT Women 1st League 2019"]
[Site "Subotica"]
[Date "2019.08.26"]
[Round "5"]
[White "Gruic, Jadranka"]
[Black "Matkovic, Simana"]
[Result "1-0"]
[ECO "D02"]
[WhiteElo "2117"]
[BlackElo "1933"]
[Annotator "NA"]
[PlyCount "37"]
[EventDate "2019.08.23"]
[EventType "team-tourn"]
[EventCountry "SRB"]
[SourceTitle "playchess.com"]
[Source "ChessBase"]
[SourceQuality "1"]
[TimeControl "40/5400+30:1800+30"]

1. d4 {[%emt 0:00:30]} d5 {[%emt 0:00:30]} 2. Bf4 {[%emt 0:00:30]} Nf6 {[%emt 0:00:30]} 3. e3 {[%emt 0:00:30]} c5 {[%emt 0:00:30]} 4. Nf3 {[%emt 0:00:30]} Nc6 {[%emt 0:00:30]} 5. c3 {[%emt 0:00:30]} Qb6 {[%emt 0:00:30]} 6. Qc2 {[%emt 0:00:30]} Bf5 {[%emt 0:00:30]} 7. dxc5 {[%emt 0:00:30]} Bxc2 {[%emt 0:00:30]} 8. cxb6 {[%emt 0:00:30]} axb6 {[%emt 0:00:30]} 9. Na3 {[%emt 0:00:30]} Bf5 {[%emt 0:00:30]} 10. Nb5 {[%emt 0:00:30]} Rc8 {[%emt 0:00:30]} 11. Bc7 {[%emt 0:00:30]} Nd7 {[%emt 0:00:30]} 12. Rd1 {[%emt 0:00:30]} Na7 {[%emt 0:00:30]} 13. Bg3 {[%emt 0:00:30]} Nc6 {[%emt 0:00:30]} 14. Nc7+ {[%emt 0:00:30]} Kd8 {[%emt 0:00:30]} 15. Nxd5 {[%emt 0:00:30]} Ke8 {[%emt 0:00:30]} 16. Nc7+ {[%emt 0:00:30]} Kd8 {[%emt 0:00:30]} 17. Nb5 {[%emt 0:00:30]} f6 {[%emt 0:00:30]} 18. Nfd4 {[%emt 0:00:30]} Bg6 {[%emt 0:00:30]} 19. Ne6+ {[%emt 0:00:30]} 1-0

[Event "SRB-chT Women 1st League 2019"]
[Site "Subotica"]
[Date "2019.08.26"]
[Round "5"]
[White "Grujic, Danijela"]
[Black "Kovacevic, Radmila"]
[Result "1/2-1/2"]
[ECO "B24"]
[WhiteElo "2033"]
[BlackElo "2117"]
[Annotator "NA"]
[PlyCount "66"]
[EventDate "2019.08.23"]
[EventType "team-tourn"]
[EventCountry "SRB"]
[SourceTitle "playchess.com"]
[Source "ChessBase"]
[SourceQuality "1"]
[TimeControl "40/5400+30:1800+30"]

1. e4 {[%emt 0:00:30]} c5 {[%emt 0:00:30]} 2. Nc3 {[%emt 0:00:30]} Nc6 {[%emt 0:00:30]} 3. g3 {[%emt 0:00:00]} g6 {[%emt 0:00:30]} 4. Bg2 {[%emt 0:01:00]} Bg7 {[%emt 0:00:30]} 5. d3 {[%emt 0:00:30]} e6 {[%emt 0:01:30]} 6. Be3 {[%emt 0:01:30]} Qa5 {[%emt 0:07:30]} 7. Qd2 {[%emt 0:03:30]} Nge7 {[%emt 0:00:30]} 8. Bh6 {[%emt 0:06:30]} Bxh6 {[%emt 0:08:30]} 9. Qxh6 {[%emt 0:00:30]} d5 {[%emt 0:00:00]} 10. exd5 {[%emt 0:02:30]} exd5 {[%emt 0:00:00]} 11. Qd2 {[%emt 0:07:30]} Nb4 {[%emt 0:05:30]} 12. Rc1 {[%emt 0:05:30]} Be6 {[%emt 0:18:30]} 13. a3 {[%emt 0:01:30]} Nbc6 {[%emt 0:00:30]} 14. Nf3 {[%emt 0:06:30]} O-O {[%emt 0:05:30]} 15. O-O {[%emt 0:01:30]} Bg4 {[%emt 0:01:30]} 16. Qf4 {[%emt 0:05:30]} Bxf3 {[%emt 0:06:30]} 17. Bxf3 {[%emt 0:00:30]} Nd4 {[%emt 0:01:30]} 18. Rfe1 {[%emt 0:13:30]} Nxf3+ {[%emt 0:21:16]} 19. Qxf3 {[%emt 0:00:30]} Rfe8 {[%emt 0:00:35]} 20. Re5 {[%emt 0:00:30]} Nc6 {[%emt 0:00:10]} 21. Rxe8+ {[%emt 0:05:30]} Rxe8 {[%emt 0:00:03]} 22. Qxd5 {[%emt 0:01:30]} Re5 {[%emt 0:01:09]} 23. Qd6 {[%emt 0:01:30]} Qb6 {[%emt 0:04:12]} 24. Rb1 {[%emt 0:08:30]} Re6 {[%emt 0:01:10]} 25. Qd5 {[%emt 0:02:30]} Re5 {[%emt 0:05:30]} 26. Qd7 {[%emt 0:06:22]} Nd4 {[%emt 0:02:03]} 27. Ne4 {[%emt 0:02:53]} Rf5 {[%emt 0:04:38]} 28. c3 {[%emt 0:05:49]} Nf3+ {[%emt 0:00:39]} 29. Kg2 {[%emt 0:00:36]} Ne5 {[%emt 0:00:25]} 30. Qc8+ {[%emt 0:02:30]} Kg7 {[%emt 0:00:10]} 31. Qxc5 {[%emt 0:00:12]} Qxc5 {[%emt 0:01:44]} 32. Nxc5 {[%emt 0:00:01]} b6 {[%emt 0:00:13]} 33. Ne4 {[%emt 0:02:13]} Nxd3 {[%emt 0:00:06]} 1/2-1/2

[Event "SRB-chT Women 1st League 2019"]
[Site "Subotica"]
[Date "2019.08.26"]
[Round "5"]
[White "Pihajlic, Amalija"]
[Black "Nomin-Erdene, Davaademberel"]
[Result "0-1"]
[ECO "B12"]
[WhiteElo "1889"]
[BlackElo "2367"]
[Annotator "NA"]
[PlyCount "56"]
[EventDate "2019.08.23"]
[EventType "team-tourn"]
[EventCountry "SRB"]
[SourceTitle "playchess.com"]
[Source "ChessBase"]
[SourceQuality "1"]
[TimeControl "40/5400+30:1800+30"]

1. e4 {[%emt 0:00:30]} c6 {[%emt 0:00:30]} 2. d4 {[%emt 0:00:00]} d5 {[%emt 0:00:00]} 3. f3 {[%emt 0:00:00]} g6 {[%emt 0:00:00]} 4. c3 {[%emt 0:00:30]} Bg7 {[%emt 0:00:30]} 5. Bd3 {[%emt 0:00:30]} dxe4 {[%emt 0:08:30]} 6. fxe4 {[%emt 0:00:30]} e5 {[%emt 0:00:00]} 7. dxe5 {[%emt 0:01:30]} Qh4+ {[%emt 0:03:00]} 8. g3 {[%emt 0:00:30]} Qe7 {[%emt 0:00:00]} 9. Nf3 {[%emt 0:00:30]} Bg4 {[%emt 0:03:00]} 10. h3 {[%emt 0:05:30]} Bxf3 {[%emt 0:05:30]} 11. Qxf3 {[%emt 0:01:30]} Nd7 {[%emt 0:00:00]} 12. Bc2 {[%emt 0:01:30]} Nxe5 {[%emt 0:00:00]} 13. Qg2 {[%emt 0:03:30]} O-O-O {[%emt 0:09:30]} 14. O-O {[%emt 0:02:30]} Nd3 {[%emt 0:00:30]} 15. Be3 {[%emt 0:08:30]} Be5 {[%emt 0:03:30]} 16. Bxa7 {[%emt 0:05:30]} Nf6 {[%emt 0:08:30]} 17. Bb3 {[%emt 0:13:30]} Nc5 {[%emt 0:08:30]} 18. Nd2 {[%emt 0:04:30]} Rd3 {[%emt 0:03:30]} 19. Rf3 {[%emt 0:01:30]} Rhd8 {[%emt 0:01:30]} 20. Nc4 {[%emt 0:04:30]} Rxf3 {[%emt 0:05:30]} 21. Qxf3 {[%emt 0:00:30]} Rd3 {[%emt 0:05:30]} 22. Nb6+ {[%emt 0:04:30]} Kd8 {[%emt 0:02:30]} 23. Rd1 {[%emt 0:00:00]} Bd4+ {[%emt 0:00:00]} 24. Kg2 {[%emt 0:04:00]} Rxf3 {[%emt 0:00:00]} 25. Rxd4+ {[%emt 0:00:30]} Ke8 {[%emt 0:00:30]} 26. Kxf3 {[%emt 0:00:30]} Nfxe4 {[%emt 0:00:30]} 27. Nd7 {[%emt 0:10:30]} Ng5+ {[%emt 0:00:30]} 28. Kf2 {[%emt 0:01:30]} Nxd7 {[%emt 0:00:30]} 0-1

[Event "SRB-chT Women 1st League 2019"]
[Site "Subotica"]
[Date "2019.08.27"]
[Round "6"]
[White "Zimina, Olga"]
[Black "Doluhanova, Evgeniya"]
[Result "1-0"]
[ECO "D30"]
[WhiteElo "2376"]
[BlackElo "2305"]
[Annotator "NA"]
[PlyCount "57"]
[EventDate "2019.08.23"]
[EventType "team-tourn"]
[EventCountry "SRB"]
[SourceTitle "playchess.com"]
[Source "ChessBase"]
[SourceQuality "1"]
[TimeControl "40/5400+30:1800+30"]

1. d4 {[%emt 0:00:30]} Nf6 {[%emt 0:00:30]} 2. c4 {[%emt 0:00:00]} e6 {[%emt 0:00:00]} 3. g3 {[%emt 0:00:00]} d5 {[%emt 0:00:00]} 4. Bg2 {[%emt 0:00:00]} Bb4+ {[%emt 0:00:30]} 5. Nd2 {[%emt 0:00:00]} c6 {[%emt 0:06:30]} 6. Qc2 {[%emt 0:02:30]} O-O {[%emt 0:01:30]} 7. Ngf3 {[%emt 0:00:30]} Ne4 {[%emt 0:07:30]} 8. O-O {[%emt 0:00:30]} Nxd2 {[%emt 0:00:30]} 9. Nxd2 {[%emt 0:01:30]} b5 {[%emt 0:07:30]} 10. c5 {[%emt 0:10:30]} Nd7 {[%emt 0:07:30]} 11. e4 {[%emt 0:00:30]} Bb7 {[%emt 0:07:30]} 12. exd5 {[%emt 0:23:30]} exd5 {[%emt 0:04:30]} 13. Nf3 {[%emt 0:00:30]} Ba5 {[%emt 0:26:30]} 14. Bg5 {[%emt 0:15:30]} f6 {[%emt 0:00:30]} 15. Bf4 {[%emt 0:01:30]} Re8 {[%emt 0:00:30]} 16. a4 {[%emt 0:00:30]} b4 {[%emt 0:00:30]} 17. Rfe1 {[%emt 0:00:30]} Nf8 {[%emt 0:00:30]} 18. Bd2 {[%emt 0:05:30]} Ba6 {[%emt 0:02:30]} 19. Qf5 {[%emt 0:06:30]} Qc7 {[%emt 0:09:48]} 20. b3 {[%emt 0:07:30]} Qf7 {[%emt 0:01:16]} 21. Bf1 {[%emt 0:03:28]} Bxf1 {[%emt 0:02:27]} 22. Kxf1 {[%emt 0:00:02]} Qg6 {[%emt 0:00:12]} 23. Nh4 {[%emt 0:01:34]} Qf7 {[%emt 0:03:08]} 24. Qd3 {[%emt 0:01:20]} Ne6 {[%emt 0:04:10]} 25. Nf5 {[%emt 0:01:08]} Qg6 {[%emt 0:01:33]} 26. Re3 {[%emt 0:00:26]} Kf8 {[%emt 0:01:05]} 27. Nd6 {[%emt 0:04:42]} Qxd3+ {[%emt 0:00:39]} 28. Rxd3 {[%emt 0:00:01]} Re7 {[%emt 0:00:11]} 29. Re1 1-0

[Event "SRB-chT Women 1st League 2019"]
[Site "Subotica"]
[Date "2019.08.27"]
[Round "6"]
[White "Bojkovic, Natasa"]
[Black "Atalik, Ekaterina"]
[Result "1/2-1/2"]
[ECO "C77"]
[WhiteElo "2374"]
[BlackElo "2456"]
[Annotator "ChessBase"]
[PlyCount "86"]
[EventDate "2019.08.23"]
[EventType "team-tourn"]
[EventCountry "SRB"]
[SourceTitle "playchess.com"]
[Source "ChessBase"]
[SourceQuality "1"]
[TimeControl "40/5400+30:1800+30"]

1. e4 {[%emt 0:00:30]} e5 {[%emt 0:00:30]} 2. Nf3 {[%emt 0:00:00]} Nc6 {[%emt 0:00:00]} 3. Bb5 {[%emt 0:01:00]} a6 {[%emt 0:00:00]} 4. Ba4 {[%emt 0:00:30]} Nf6 {[%emt 0:00:30]} 5. d3 {[%emt 0:00:30]} d6 {[%emt 0:00:30]} 6. c4 {[%emt 0:00:30]} g6 {[%emt 0:01:30]} 7. Nc3 {[%emt 0:00:30]} Bg7 {[%emt 0:00:30]} 8. Nd5 {[%emt 0:00:30]} Bd7 {[%emt 0:01:30]} 9. O-O {[%emt 0:06:30]} Nxd5 {[%emt 0:07:30]} 10. cxd5 {[%emt 0:00:30]} Ne7 {[%emt 0:00:30]} 11. Bxd7+ {[%emt 0:02:30]} Qxd7 {[%emt 0:00:30]} 12. Be3 {[%emt 0:04:30]} c6 {[%emt 0:02:30]} 13. dxc6 {[%emt 0:01:30]} Nxc6 {[%emt 0:00:00]} 14. Nd2 {[%emt 0:09:30]} O-O {[%emt 0:07:00]} 15. Nc4 {[%emt 0:00:30]} Rab8 {[%emt 0:03:30]} 16. Nb6 {[%emt 0:03:30]} Qe6 {[%emt 0:00:30]} 17. Qa4 {[%emt 0:06:30]} f5 {[%emt 0:10:30]} 18. f3 {[%emt 0:05:30]} Rf7 {[%emt 0:03:30]} 19. Rac1 {[%emt 0:05:30]} f4 {[%emt 0:02:30]} 20. Bf2 {[%emt 0:00:00]} g5 {[%emt 0:01:30]} 21. Qb3 {[%emt 0:08:00]} Qg6 {[%emt 0:07:30]} 22. Nd5 {[%emt 0:00:30]} Re8 {[%emt 0:03:30]} 23. Nc7 {[%emt 0:05:30]} Rc8 {[%emt 0:03:30]} 24. Nd5 {[%emt 0:01:30]} Bf8 {[%emt 0:05:30]} 25. Nb4 {[%emt 0:09:30]} g4 {[%emt 0:03:30]} 26. fxg4 {[%emt 0:03:30]} Qxg4 {[%emt 0:00:00]} 27. Nxc6 {[%emt 0:00:30]} bxc6 {[%emt 0:01:00]} 28. d4 {[%emt 0:01:30]} Bg7 {[%emt 0:07:30]} 29. d5 {[%emt 0:04:17]} cxd5 {[%emt 0:14:27]} 30. h3 {[%emt 0:05:59]} Qd7 {[%emt 0:00:20]} 31. Qxd5 {[%emt 0:00:24]} Bf8 {[%emt 0:01:55]} 32. Kh2 {[%emt 0:03:09]} Kg7 {[%emt 0:00:38]} 33. b3 {[%emt 0:01:16]} Rf6 {[%emt 0:04:08]} 34. Rfd1 {[%emt 0:05:00]} f3 {[%emt 0:01:49]} 35. Rxc8 {[%emt 0:01:50]} Qxc8 {[%emt 0:00:05]} 36. Rg1 {[%emt 0:01:33]} fxg2 {[%emt 0:01:09]} 37. Rxg2+ {[%emt 0:00:02]} Rg6 {[%emt 0:00:05]} 38. Rxg6+ {[%emt 0:00:29]} hxg6 {[%emt 0:00:07]} 39. Qc4 {[%emt 0:03:40]} Qxc4 {[%emt 0:03:12]} 40. bxc4 {[%emt 0:00:00]} Kf6 {[%emt 0:00:00]} 41. Kg3 {[%emt 0:02:51]} Ke6 {[%emt 0:02:35]} 42. Kf3 {[%emt 0:00:30]} Bh6 {[%emt 0:06:30]} 43. Ke2 {[%emt 0:01:30]} Kd7 1/2-1/2

[Event "SRB-chT Women 1st League 2019"]
[Site "Subotica"]
[Date "2019.08.27"]
[Round "6"]
[White "Nomin-Erdene, Davaademberel"]
[Black "Nestorovic, Katarina"]
[Result "1/2-1/2"]
[ECO "B80"]
[WhiteElo "2367"]
[BlackElo "2159"]
[Annotator "NA"]
[PlyCount "55"]
[EventDate "2019.08.23"]
[EventType "team-tourn"]
[EventCountry "SRB"]
[SourceTitle "playchess.com"]
[Source "ChessBase"]
[SourceQuality "1"]
[TimeControl "40/5400+30:1800+30"]

1. e4 {[%emt 0:00:30]} c5 {[%emt 0:00:30]} 2. Nf3 {[%emt 0:00:00]} e6 {[%emt 0:00:00]} 3. d4 {[%emt 0:00:00]} cxd4 {[%emt 0:00:00]} 4. Nxd4 {[%emt 0:00:00]} Nf6 {[%emt 0:00:00]} 5. Nc3 {[%emt 0:00:00]} d6 {[%emt 0:00:00]} 6. Be3 {[%emt 0:00:00]} Be7 {[%emt 0:00:30]} 7. f3 {[%emt 0:00:00]} O-O {[%emt 0:00:30]} 8. Qd2 {[%emt 0:00:30]} Nc6 {[%emt 0:00:30]} 9. g4 {[%emt 0:00:00]} d5 {[%emt 0:00:30]} 10. g5 {[%emt 0:14:00]} Nh5 {[%emt 0:00:30]} 11. f4 {[%emt 0:13:30]} Nxd4 {[%emt 0:14:30]} 12. Qxd4 {[%emt 0:04:30]} dxe4 {[%emt 0:01:30]} 13. Qxe4 {[%emt 0:04:30]} Bd7 {[%emt 0:02:30]} 14. Bd3 {[%emt 0:02:30]} g6 {[%emt 0:04:30]} 15. Qf3 {[%emt 0:14:30]} Bc6 {[%emt 0:11:30]} 16. Be4 {[%emt 0:03:30]} Rc8 {[%emt 0:01:30]} 17. Bd2 {[%emt 0:02:30]} Bxe4 {[%emt 0:06:30]} 18. Qxe4 {[%emt 0:00:30]} b5 {[%emt 0:00:30]} 19. O-O-O {[%emt 0:07:30]} Rc4 {[%emt 0:05:30]} 20. Qb7 {[%emt 0:06:30]} b4 {[%emt 0:05:30]} 21. Be3 {[%emt 0:09:53]} Qa5 {[%emt 0:11:30]} 22. Qxe7 {[%emt 0:03:04]} bxc3 {[%emt 0:00:30]} 23. Kb1 {[%emt 0:04:42]} cxb2 {[%emt 0:08:30]} 24. Bd4 {[%emt 0:07:57]} Rb8 {[%emt 0:17:38]} 25. Be5 {[%emt 0:00:22]} Rf8 {[%emt 0:03:28]} 26. Bd6 {[%emt 0:00:58]} Rfc8 {[%emt 0:00:48]} 27. Be5 {[%emt 0:00:58]} Rxc2 {[%emt 0:00:55]} 28. a3 {[%emt 0:00:28]} 1/2-1/2